bitfinex/quotes_ETHUSD_20250722
["timestamp","ask_amount","ask_price","bid_price","bid_amount"]
[1753145997017,16.06187627,3744.6,3744.5,0.001]
[1753145997227,0.0419,3743.9,3743.1,1.2506]
[1753145997445,0.1328,3743.6,3743.3,0.4747]
[1753145997645,0.1328,3743.6,3743.1,0.7759]
[1753145997853,2.67129691,3743.5,3743.4,0.47570001]
[1753145998223,2.80403599,3743.6,3743.4,0.47570001]
[1753145998423,2.67129691,3743.5,3743.4,0.47570001]
[1753145999430,2.67129691,3743.5,3743.4,0.00100001]
[1753146001083,6.77729691,3743.5,3743.4,0.00100001]
[1753146001390,12.92986098,3743.5,3743.4,0.00100001]
[1753146001733,0.71386535,3745.5,3744.1,0.7559]
[1753146001971,0.71386535,3745.5,3743.7,2.6711542]
[1753146001972,0.002,3745.5,3745.3,2.67000089]
[1753146002184,0.002,3745.5,3745.4,3.71954129]
[1753146002474,0.002,3745.5,3745.4,4.19424129]
[1753146002645,0.002,3745.5,3745.4,0.7559]
[1753146002845,6.15456407,3745.5,3744.8,0.7559]
[1753146003046,10.29756407,3745.5,3744.8,1.2306]
[1753146003462,4.145,3745.5,3745.2,2.67001725]
[1753146003650,0.002,3745.5,3745.2,0.4747]
[1753146003848,0.002,3745.5,3745.3,0.4747]
[1753146004049,0.002,3745.5,3745.4,2.6966412]
[1753146004365,0.002,3745.5,3745.4,4.04367869]
[1753146004531,0.002,3745.5,3745.4,4.51837869]
[1753146004737,1e-08,3745.5,3745.4,11.66237869]
[1753146004945,1e-08,3745.5,3745.4,11.63567928]
[1753146005293,0.002,3745.8,3745.7,2.66972795]
[1753146005649,0.002,3745.8,3745.7,3.14442795]
[1753146008406,0.002,3745.8,3745.7,3.55489611]
[1753146008552,0.002,3745.8,3745.7,4.35449884]
[1753146008995,0.002,3745.8,3745.7,4.38119611]
[1753146009989,0.002,3745.8,3745.7,4.35449884]
[1753146010368,0.002,3745.8,3745.7,4.38119611]
[1753146011760,0.002,3745.8,3745.7,4.51399611]
[1753146012084,0.002,3745.8,3745.7,8.62729884]
[1753146015203,0.002,3746.3,3746.2,3.42407162]
[1753146015364,0.002,3746.3,3746.2,8.17142435]
[1753146015568,0.002,3746.3,3746.2,8.77892435]
[1753146017097,0.002,3746.3,3746.2,0.1328]
[1753146017255,0.002,3746.3,3745.4,0.7912]
[1753146017454,0.002,3746.3,3745.7,0.1328]
[1753146017676,2.67132102,3746.3,3745.7,2.80247913]
[1753146017886,2.67132102,3746.3,3745.7,0.1328]
[1753146018089,2.66941898,3746.2,3745.4,4.136]
[1753146018291,0.1328,3746.2,3745.6,2.66978465]
[1753146018636,0.1328,3746.2,3745.9,2.6695232]
[1753146019098,0.1328,3746.2,3745.7,2.69639978]
[1753146019296,0.1328,3746.2,3745.8,0.7578]
[1753146019497,0.1328,3746.2,3745.8,1.2236]
[1753146019798,0.1328,3746.2,3745.9,2.66958305]
[1753146020367,0.1328,3746.2,3746.0,2.66951057]
[1753146020572,0.1328,3746.2,3745.9,0.4658]
[1753146020757,0.1328,3746.2,3745.6,2.66975735]
[1753146020955,0.1348,3746.2,3745.6,2.66979923]
[1753146021216,2.80419254,3746.2,3745.6,2.66979923]
[1753146021500,0.1348,3746.2,3745.7,2.6697141]
[1753146021696,0.1348,3746.2,3745.6,2.66977769]
[1753146022469,0.1348,3746.2,3745.5,0.1328]
[1753146022669,2.66949309,3746.1,3745.5,2.80265777]
[1753146022864,0.1348,3746.2,3745.9,2.66958299]
[1753146023097,0.1348,3746.2,3746.0,2.66950451]
[1753146023274,0.1348,3746.2,3746.0,3.13530451]
[1753146023959,0.1348,3746.2,3746.0,0.4658]
[1753146024158,0.1348,3746.2,3746.0,3.13531109]
[1753146024393,0.002,3746.2,3746.0,0.4658]
[1753146024593,0.002,3746.2,3745.9,0.1328]
[1753146025494,0.002,3746.2,3745.9,2.66957275]
[1753146025979,0.002,3746.2,3745.9,0.59645907]
[1753146026182,0.002,3746.2,3746.0,0.02669514]
[1753146026399,0.002,3746.2,3746.0,3.13528676]
[1753146026606,0.002,3746.2,3746.0,0.4658]
[1753146026788,0.002,3746.2,3746.0,3.13530393]
[1753146027103,0.002,3746.2,3746.1,2.66944288]
[1753146027799,0.002,3746.2,3746.0,0.4658]
[1753146028001,0.002,3746.2,3746.0,3.13528914]
[1753146029117,0.002,3746.2,3746.0,0.49249514]
[1753146029298,0.002,3746.2,3746.0,0.4658]
[1753146029672,0.002,3746.2,3745.9,0.1328]
[1753146029975,0.002,3746.2,3745.9,2.80237288]
[1753146030304,0.002,3746.2,3745.9,3.26817288]
[1753146030714,0.002,3746.2,3745.9,0.5986]
[1753146030865,0.002,3746.2,3745.9,3.26818157]
[1753146031478,0.002,3746.2,3745.9,0.5986]
[1753146032080,2.71134294,3746.1,3745.1,0.4658]
[1753146032280,2.66965762,3745.8,3745.3,0.1328]
[1753146032481,0.1328,3745.9,3745.3,2.80278641]
[1753146032482,2.8023932,3745.9,3745.3,2.80278641]
[1753146032681,2.66966317,3745.8,3745.3,0.1328]
[1753146033104,2.66966317,3745.8,3745.3,0.5986]
[1753146033305,2.80240593,3745.9,3745.3,3.26860445]
[1753146033802,2.66979261,3745.7,3745.3,0.1328]
[1753146034748,2.6696838,3745.8,3745.3,0.5986]
[1753146034996,0.1328,3745.9,3745.3,0.1328]
[1753146035124,2.6697057,3745.8,3745.3,0.1328]
[1753146035805,2.80239116,3745.9,3745.3,0.1328]
[1753146036033,2.66966027,3745.8,3745.3,0.5986]
[1753146036234,0.1328,3745.9,3745.3,0.5986]
[1753146036424,0.1328,3745.9,3745.3,0.1328]
[1753146036725,2.66976965,3745.7,3745.3,0.1328]
[1753146037103,2.80238986,3745.9,3745.3,0.1328]
[1753146037104,0.1328,3745.9,3745.3,0.1328]
[1753146037447,2.66967336,3745.8,3745.3,0.1328]
[1753146037646,2.66967336,3745.8,3745.3,0.5986]
[1753146038244,2.80238775,3745.9,3745.3,0.5986]
[1753146038447,2.66970411,3745.8,3745.3,0.5986]
[1753146038648,2.66973888,3745.7,3745.3,0.5986]
[1753146039662,2.66994179,3745.4,3745.1,0.1328]
[1753146039953,0.1328,3745.7,3745.1,0.1328]
[1753146040121,2.67008437,3745.2,3744.5,2.67053124]
[1753146040302,2.67008437,3745.2,3744.7,0.1328]
[1753146040502,0.1328,3745.3,3744.7,0.5986]
[1753146040729,2.67036957,3744.8,3743.8,0.7698]
[1753146041047,2.67058819,3744.5,3743.9,3.13680481]
[1753146041343,2.67065551,3744.4,3743.9,0.4658]
[1753146041518,2.67058289,3744.6,3744.0,0.3906665]
[1753146041847,4.119,3744.7,3744.2,2.67079385]
[1753146042024,0.0419,3745.2,3744.3,0.4658]
[1753146042025,2.67022035,3745.1,3744.3,0.4658]
[1753146042220,4.121,3745.0,3744.5,2.67056807]
[1753146042425,4.121,3745.1,3744.6,0.4658]
[1753146042620,4.121,3745.1,3744.5,2.67058352]
[1753146042857,4.121,3745.4,3744.7,0.4658]
[1753146043064,3.0,3746.0,3745.0,2.67022604]
[1753146043065,3.0,3745.6,3745.0,2.67022604]
[1753146043211,0.0419,3745.4,3744.3,0.826]
[1753146043412,5.71188658,3745.4,3744.3,0.826]
[1753146043788,0.3418,3745.3,3744.2,0.4658]
[1753146043926,2.67037122,3744.8,3744.2,0.4658]
[1753146044123,2.67025197,3745.0,3744.2,0.63404665]
[1753146044124,2.67047838,3744.7,3744.2,0.63404665]
[1753146044314,2.67062112,3744.5,3744.0,0.3906665]
[1753146044662,2.67055682,3744.6,3743.9,0.4658]
[1753146044823,2.67055682,3744.6,3743.6,2.67122106]
[1753146044824,4.122,3744.5,3743.6,2.67122106]
[1753146045028,2.67081168,3744.2,3743.5,3.13708311]
[1753146045223,2.67090663,3744.1,3743.5,0.4658]
[1753146045444,4.122,3744.5,3743.5,0.4658]
[1753146045644,4.122,3744.5,3743.4,0.00100001]
[1753146045645,0.0419,3744.0,3743.4,0.00100001]
[1753146045825,2.67105828,3743.9,3743.4,0.00100001]
[1753146046026,2.67101151,3743.9,3743.4,0.00100001]
[1753146046222,2.67108285,3743.8,3743.4,0.00100001]
[1753146046424,3.0,3743.9,3743.4,0.00100001]
[1753146046610,2.67129154,3743.6,3743.4,0.00100001]
[1753146046850,2.67117804,3743.7,3743.4,0.00100001]
[1753146047043,2.67123497,3743.6,3743.4,0.00100001]
[1753146047429,2.67129691,3743.5,3743.4,0.00100001]
[1753146048270,6.79329691,3743.5,3743.4,0.00100001]
[1753146048555,7.13509691,3743.5,3743.4,0.00100001]
[1753146048764,7.17699691,3743.5,3743.4,0.00100001]
[1753146051552,7.3794214,3743.5,3743.4,0.00100001]
[1753146052166,10.3794214,3743.5,3743.4,0.00100001]
[1753146052577,10.9294214,3743.5,3743.4,0.00100001]
[1753146052740,10.9294214,3743.5,3743.1,0.02]
[1753146052741,6.263411,3743.2,3743.1,0.02]
[1753146052929,10.384411,3743.2,3743.1,0.02]
[1753146053129,10.726211,3743.2,3743.1,0.02]
[1753146054374,20.08793097,3743.2,3743.1,0.02]
[1753146056665,20.08793097,3743.2,3742.6,1e-08]
[1753146056666,6.2637679,3742.7,3742.6,1e-08]
[1753146056868,6.2637679,3742.7,3740.8,0.4516]
[1753146056869,2.67251055,3741.8,3737.1,3.5028005]
[1753146057069,17.1710026,3742.7,3737.1,3.5028005]
[1753146057070,9.36171997,3741.5,3739.7,0.4516]
[1753146057367,9.08158198,3741.7,3740.2,0.4516]
[1753146057368,3.0,3741.3,3740.2,0.4516]
[1753146057711,6.409,3741.7,3740.2,0.4516]
[1753146057712,4.146,3741.5,3740.2,0.47833653]
[1753146057980,0.0219,3742.3,3741.5,2.67270114]
[1753146058283,0.0219,3742.3,3740.8,0.1336]
[1753146058284,0.1336,3741.9,3741.6,1.2586]
[1753146058447,0.1336,3741.9,3741.6,0.807]
[1753146058781,2.67308338,3741.0,3740.3,0.84950716]
[1753146059079,3.0,3741.0,3739.8,0.4516]
[1753146059249,3.0,3740.8,3739.8,0.5852]
[1753146059577,0.1336,3740.4,3739.8,0.1336]
[1753146059739,0.1336,3740.2,3739.7,0.807]
[1753146060136,5.80725381,3740.2,3739.5,0.1336]
[1753146060450,5.80725381,3740.2,3739.3,0.4516]
[1753146060451,3.33121891,3740.2,3739.3,0.4516]
[1753146060653,3.33121891,3740.2,3739.1,0.1536]
[1753146060654,4.2936,3740.2,3740.1,0.4716]
[1753146061063,4.163,3740.4,3740.1,0.78613937]
[1753146061391,3.0,3741.3,3740.2,0.4516]
[1753146061392,0.1336,3740.7,3740.2,0.4516]
[1753146061537,0.1336,3740.7,3740.3,2.67358233]
[1753146061743,0.1336,3740.7,3740.6,2.6733679]
[1753146061967,4.165,3740.9,3740.7,2.67325881]
[1753146062161,4.165,3740.9,3740.8,0.4516]
[1753146062551,4.165,3740.9,3740.6,0.8194]
[1753146062756,4.165,3740.9,3739.6,0.953]
[1753146062757,2.67365381,3740.2,3739.6,0.953]
[1753146062952,6.84165381,3740.2,3739.6,0.1336]
[1753146063153,10.39165381,3740.2,3739.1,0.8394]
[1753146063335,6.22365381,3740.2,3739.1,0.8394]
[1753146063536,10.39165381,3740.2,3739.1,0.8394]
[1753146063738,10.73345381,3740.2,3739.1,0.02]
[1753146064274,10.75535381,3740.2,3739.1,0.02]
[1753146064452,0.0219,3740.2,3739.6,2.67406081]
[1753146064651,4.173,3740.2,3740.1,0.021]
[1753146064850,0.1336,3740.2,3740.1,0.4726]
[1753146065052,4.3086,3740.2,3740.1,0.021]
[1753146065268,9.98225381,3740.2,3740.1,0.021]
[1753146065464,10.89595381,3740.2,3740.1,0.021]
[1753146066396,6.37915381,3740.2,3740.1,0.021]
[1753146066556,0.1336,3740.2,3740.1,0.021]
[1753146066763,4.3146,3740.2,3740.1,0.4726]
[1753146067255,0.1336,3740.2,3740.1,0.021]
[1753146067460,6.98825381,3740.2,3740.1,0.021]
[1753146067673,9.98825381,3740.2,3740.1,0.021]
[1753146068495,7.3156,3740.2,3740.1,0.021]
[1753146068698,9.98925381,3740.2,3740.1,0.021]
[1753146068994,9.98825381,3740.2,3740.1,0.021]
[1753146069296,6.35725381,3740.2,3740.1,0.021]
[1753146069474,10.53825381,3740.2,3740.1,0.021]
[1753146070498,7.8646,3740.2,3740.1,0.021]
[1753146070672,0.1336,3740.2,3740.1,0.021]
[1753146070874,7.81,3741.3,3740.1,3.9642253]
[1753146070875,4.184,3740.4,3740.1,3.9642253]
[1753146071182,4.3176,3740.6,3740.5,2.67343937]
[1753146071419,4.184,3741.3,3740.5,0.4516]
[1753146071589,0.1336,3741.3,3740.6,0.85603367]
[1753146071795,4.185,3741.5,3741.4,2.67279627]
[1753146071959,0.1336,3741.8,3741.5,2.67267756]
[1753146072164,4.3186,3741.8,3741.6,0.4516]
[1753146072478,4.3186,3741.8,3741.7,0.4516]
[1753146072877,2.67188616,3742.7,3741.7,3.51953663]
[1753146073083,0.1336,3742.2,3741.8,0.4516]
[1753146073284,4.184,3742.2,3742.1,2.6722963]
[1753146073493,4.184,3742.2,3742.1,3.1238963]
[1753146073673,0.1336,3742.4,3742.3,2.67215348]
[1753146073877,0.1336,3742.4,3742.1,3.1238963]
[1753146073878,4.184,3742.7,3742.5,2.67195569]
[1753146074102,4.184,3742.7,3742.6,3.12353929]
[1753146074401,0.0219,3743.7,3742.6,0.779]
[1753146074572,6.414,3744.3,3742.6,0.779]
[1753146074573,0.1328,3743.2,3743.1,2.67158237]
[1753146074762,4.185,3743.6,3743.1,3.12316812]
[1753146074964,4.3178,3743.6,3743.2,0.4516]
[1753146075208,4.3178,3743.6,3743.3,0.4516]
[1753146075676,4.3178,3743.6,3743.4,0.4516]
[1753146075998,4.3178,3743.6,3743.1,2.67155957]
[1753146076200,7.3178,3743.6,3743.1,2.67155957]
[1753146076385,2.67129691,3743.5,3743.1,0.4516]
[1753146077007,2.67129691,3743.5,3743.0,0.1328]
[1753146077008,7.3178,3743.6,3743.2,0.4428]
[1753146077195,9.98903754,3743.6,3743.0,0.1328]
[1753146077392,2.67135178,3743.5,3743.0,0.1328]
[1753146077619,0.1328,3743.2,3742.7,0.4428]
[1753146077794,2.80431284,3743.2,3742.7,0.4428]
[1753146077994,0.1328,3743.2,3742.7,0.4428]
[1753146078320,2.67172997,3742.9,3742.6,0.9118]
[1753146078497,4.181,3743.0,3742.6,0.9118]
[1753146078702,6.8526771,3743.0,3742.6,0.9118]
[1753146079098,6.8526771,3743.0,3742.3,0.4428]
[1753146079099,4.181,3743.0,3742.3,0.4428]
[1753146079434,2.80461533,3742.8,3742.3,0.4428]
[1753146079628,2.67200566,3742.6,3742.3,0.4428]
[1753146080000,2.67188256,3742.7,3742.3,0.4428]
[1753146080224,2.67188256,3742.7,3742.4,0.4428]
[1753146080416,2.67194225,3742.6,3742.4,0.4428]
[1753146080636,2.67187345,3742.7,3742.4,0.4428]
[1753146080812,0.1328,3742.8,3742.2,0.8978]
[1753146081019,2.67211094,3742.4,3742.2,0.8978]
[1753146081318,2.67215348,3742.3,3742.2,0.8978]
[1753146081514,2.67238264,3742.0,3741.6,1.2579]
[1753146081916,2.67237872,3742.0,3741.6,1.2579]
[1753146082122,0.1336,3742.1,3741.7,0.4428]
[1753146082305,0.1336,3742.1,3741.8,0.4428]
[1753146082848,0.1336,3742.1,3740.6,3.0]
[1753146082849,0.55,3741.3,3740.2,1.2675]
[1753146083157,2.67348889,3740.5,3740.2,0.8247]
[1753146083458,2.67352853,3740.4,3740.2,0.8247]
[1753146083607,6.86946114,3740.5,3740.2,0.8247]
[1753146083950,4.196,3740.5,3740.3,0.4428]
[1753146084101,3.0,3740.8,3740.2,0.8247]
[1753146084309,5.67338519,3740.6,3740.4,0.4428]
[1753146084841,2.67343937,3740.5,3740.4,0.4428]
[1753146085041,2.67343937,3740.5,3740.2,0.8247]
[1753146085042,6.86743937,3740.5,3740.2,0.8247]
[1753146085263,4.194,3740.5,3740.2,0.8247]
[1753146085407,4.194,3740.5,3740.2,1.2675]
[1753146085608,4.194,3740.5,3740.2,0.8247]
[1753146085804,4.194,3740.5,3740.3,0.4428]
[1753146086259,6.86745967,3740.5,3740.3,0.4428]
[1753146086637,2.67352013,3740.4,3740.2,0.8247]
[1753146086871,2.67352013,3740.4,3740.3,0.001]
[1753146087861,6.86745877,3740.5,3740.3,0.001]
[1753146088165,0.0219,3741.5,3740.3,0.001]
[1753146088326,2.67316407,3740.9,3740.3,0.4438]
[1753146088525,3.22270539,3741.6,3740.3,0.4438]
[1753146088526,2.69426771,3742.0,3740.4,0.7702]
[1753146088847,2.67326994,3740.8,3740.4,0.7702]
[1753146089024,6.86529861,3740.7,3740.4,0.7702]
[1753146089220,4.192,3740.7,3740.4,0.7702]
[1753146089466,6.86531759,3740.7,3740.4,0.7702]
[1753146089650,6.86531759,3740.7,3740.3,0.001]
[1753146089847,0.54244135,3742.1,3740.4,0.4428]
[1753146090054,2.67278785,3741.5,3740.8,2.67320831]
[1753146090359,3.20064135,3742.1,3740.9,3.1159438]
[1753146090360,4.194,3741.4,3740.9,3.1159438]
[1753146090560,4.194,3741.4,3740.9,2.6731438]
[1753146090725,4.194,3741.4,3741.0,3.11586696]
[1753146090925,2.67233684,3742.1,3741.1,3.11574065]
[1753146091126,3.0,3741.9,3741.3,2.67283033]
[1753146091364,4.194,3742.0,3741.2,2.67292384]
[1753146091575,3.0,3741.8,3741.2,2.67292384]
[1753146091762,2.67249476,3741.9,3741.2,2.67292384]
[1753146091960,2.6723947,3742.0,3741.2,2.67293916]
[1753146092165,3.0,3741.8,3741.4,2.6727951]
[1753146092362,3.0,3741.8,3741.1,0.4428]
[1753146092363,3.0,3741.6,3741.1,0.4428]
[1753146092562,4.192,3741.5,3740.7,0.4428]
[1753146092770,4.192,3741.5,3740.9,2.80671622]
[1753146092940,2.67286771,3741.3,3740.9,0.1336]
[1753146093139,2.67286771,3741.3,3740.3,0.001]
[1753146093140,2.67351085,3740.4,3740.3,0.001]
[1753146093357,6.86551085,3740.4,3740.3,0.001]
[1753146094803,4.197,3740.4,3740.3,0.001]
[1753146095297,6.87051085,3740.4,3740.3,0.001]
[1753146095775,6.86851085,3740.4,3740.3,0.001]
[1753146096363,2.67338578,3740.6,3740.3,0.001]
[1753146096562,4.194,3740.4,3740.3,0.001]
[1753146097083,6.86751085,3740.4,3740.3,0.001]
[1753146098248,4.194,3740.4,3740.3,0.001]
[1753146098789,6.86751085,3740.4,3740.3,0.001]
[1753146098990,6.86651085,3740.4,3740.3,0.001]
[1753146101821,10.41651085,3740.4,3740.3,0.001]
[1753146102125,10.75831085,3740.4,3740.3,0.001]
[1753146102619,3.22365381,3740.2,3740.1,0.021]
[1753146102773,7.43355381,3740.2,3740.1,0.021]
[1753146103110,7.77535381,3740.2,3740.1,0.021]
[1753146103274,10.77535381,3740.2,3740.1,0.021]
[1753146104149,10.77535381,3740.2,3739.1,0.02]
[1753146104150,3.24626884,3739.2,3739.1,0.02]
[1753146104281,5.67508426,3738.2,3737.6,0.801]
[1753146104618,9.86808426,3738.2,3737.6,0.801]
[1753146104988,9.86808426,3738.2,3737.4,0.4428]
[1753146105575,10.62341843,3738.2,3737.4,0.4428]
[1753146105791,10.98711843,3738.2,3737.2,0.7808]
[1753146106835,10.64531843,3738.2,3737.2,0.7808]
[1753146107038,10.64531843,3738.2,3737.2,3.45658208]
[1753146107221,10.64531843,3738.2,3737.1,0.02]
[1753146107222,10.98711843,3738.2,3737.1,0.02]
[1753146107626,10.98611843,3738.2,3737.1,0.02]
[1753146108442,3.56903417,3738.2,3737.1,0.02]
[1753146108645,2.67580006,3737.2,3737.1,0.02]
[1753146108851,10.44170006,3737.2,3737.1,0.02]
[1753146109012,7.7689,3737.2,3737.1,0.02]
[1753146109200,10.44470006,3737.2,3737.1,0.02]
[1753146109718,3.5719,3737.2,3737.1,0.02]
[1753146109919,3.0,3737.2,3737.1,0.02]
[1753146110120,4.198,3737.2,3737.1,0.02]
[1753146110311,0.0219,3737.6,3737.1,0.02]
[1753146110517,3.55,3737.6,3737.1,0.02]
[1753146110718,0.5719,3738.0,3737.2,0.4423]
[1753146110920,0.0219,3738.8,3737.3,0.85365728]
[1753146111146,0.0219,3738.8,3737.7,2.67542229]
[1753146111147,2.67486,3738.6,3737.7,2.67542229]
[1753146111451,4.201,3738.5,3738.2,2.67506775]
[1753146111652,4.201,3738.4,3737.7,1.02163076]
[1753146111811,4.201,3738.4,3737.3,1.2692]
[1753146112009,4.201,3738.4,3737.1,0.02]
[1753146112010,2.67556221,3737.6,3737.1,0.02]
[1753146112219,3.19940491,3738.5,3737.1,0.02]
[1753146112409,2.67501499,3738.3,3737.5,2.67551618]
[1753146112746,3.099,3738.9,3737.6,0.4423]
[1753146112747,9.87809223,3738.2,3737.6,0.4423]
[1753146113117,0.55,3738.1,3737.1,0.02]
[1753146113321,2.67539838,3737.8,3737.1,0.4623]
[1753146113518,2.67551369,3737.6,3737.1,0.4623]
[1753146114029,6.88145141,3737.7,3737.1,0.02]
[1753146114209,2.67580006,3737.2,3737.1,0.02]
[1753146114412,6.88180006,3737.2,3737.1,0.02]
[1753146114743,7.43180006,3737.2,3737.1,0.02]
[1753146115551,10.77360006,3737.2,3737.1,0.02]
[1753146115846,10.79550006,3737.2,3737.1,0.02]
[1753146116216,6.58950006,3737.2,3737.1,0.02]
[1753146116436,10.45270006,3737.2,3737.1,0.02]
[1753146116819,10.45270006,3737.2,3736.3,0.001]
[1753146116820,2.67637297,3736.4,3736.3,0.001]
[1753146117021,10.43137297,3736.4,3736.3,0.001]
[1753146117736,10.79507297,3736.4,3736.3,0.001]
[1753146118251,3.0219,3736.3,3735.1,0.02]
[1753146118424,2.67723281,3735.2,3735.1,0.02]
[1753146118628,9.89423281,3735.2,3735.1,0.02]
[1753146118826,4.217,3735.2,3735.1,0.02]
[1753146119012,6.89423281,3735.2,3735.1,0.02]
[1753146119441,2.67710904,3735.4,3735.1,0.02]
[1753146119648,0.55,3736.0,3735.1,0.02]
[1753146119649,4.216,3735.2,3735.1,0.02]
[1753146119968,0.0219,3736.3,3735.2,0.4423]
[1753146120173,4.216,3736.2,3735.2,3.11952864]
[1753146120332,4.218,3736.1,3736.0,2.67665952]
[1753146120516,2.67594829,3737.0,3736.0,0.4423]
[1753146120857,0.0219,3737.3,3736.3,0.8258]
[1753146121169,6.9251669,3738.5,3736.5,0.7606]
[1753146121170,4.229,3737.2,3736.5,0.7606]
[1753146121370,4.232,3737.3,3736.6,0.4423]
[1753146121552,0.79136411,3738.0,3737.5,0.7606]
[1753146121718,0.79136411,3738.0,3737.6,0.4423]
[1753146121916,0.0219,3738.9,3737.6,0.4423]
[1753146122375,2.67496462,3738.4,3737.6,2.67545649]
[1753146122674,3.0219,3738.9,3737.7,0.4423]
[1753146122822,12.59973996,3739.0,3737.7,0.4423]
[1753146122823,2.67470927,3738.8,3737.8,2.67537053]
[1753146123022,3.0,3738.9,3737.7,0.4423]
[1753146123328,3.0,3738.9,3737.5,0.7606]
[1753146123329,2.67501,3738.4,3737.5,0.7606]
[1753146123532,2.67510383,3738.2,3737.5,0.7606]
[1753146123845,4.233,3738.3,3737.5,3.43614682]
[1753146124042,2.67492389,3738.5,3737.5,1.2029]
[1753146124269,4.232,3738.4,3737.5,0.7606]
[1753146124469,2.67525541,3738.0,3737.5,0.7606]
[1753146124676,4.231,3737.9,3737.5,0.7606]
[1753146125175,4.231,3737.9,3737.0,1.25]
[1753146125382,4.231,3737.9,3737.0,0.8077]
[1753146125683,4.231,3737.9,3736.5,0.8077]
[1753146125975,6.90630188,3737.9,3736.9,2.67594738]
[1753146126176,6.90630188,3737.9,3736.8,0.4423]
[1753146126396,4.229,3737.8,3737.1,2.67580009]
[1753146126538,2.67509006,3738.2,3737.2,0.4423]
[1753146126738,7.229,3738.1,3737.2,0.4423]
[1753146126943,2.67552132,3737.6,3737.2,0.4423]
[1753146127141,2.67572752,3737.4,3736.7,2.67613446]
[1753146127453,4.228,3737.6,3736.7,0.66024459]
[1753146127652,4.228,3737.6,3736.6,0.4423]
[1753146128069,2.67606482,3736.9,3736.6,0.4423]
[1753146128372,0.1336,3736.6,3736.5,0.8077]
[1753146129990,2.67630513,3736.5,3736.2,0.4423]
[1753146130189,2.67630513,3736.5,3736.1,0.7986]
[1753146130190,2.67639523,3736.4,3736.1,0.7986]
[1753146130355,4.227,3736.9,3736.1,0.7986]
[1753146130356,0.1336,3736.2,3736.1,0.7986]
[1753146131186,0.1336,3736.2,3736.1,1.2409]
[1753146133077,4.222,3736.6,3736.3,2.67642928]
[1753146133295,4.3556,3736.6,3736.4,2.67635697]
[1753146133493,0.1336,3736.6,3736.5,0.4423]
[1753146134076,0.1336,3736.6,3736.5,3.11860135]
[1753146134804,4.22,3736.9,3736.8,2.67608649]
[1753146135095,4.22,3736.9,3736.8,3.89208649]
[1753146135295,9.42,3737.8,3737.1,2.67586443]
[1753146135296,6.42,3737.8,3737.1,2.67586443]
[1753146135512,0.1336,3737.3,3737.2,3.11810006]
[1753146135700,0.0219,3738.4,3737.2,3.11810006]
[1753146135908,0.1336,3737.6,3737.2,3.11809574]
[1753146136202,0.1336,3737.6,3736.8,0.7737]
[1753146136203,2.67577739,3737.3,3736.8,0.7737]
[1753146136510,0.3418,3737.2,3736.4,0.7821]
[1753146136709,2.67594327,3737.0,3736.0,0.7821]
[1753146136930,2.67614324,3736.8,3736.1,2.67654362]
[1753146137226,2.67594327,3737.0,3736.1,2.67656137]
[1753146137427,2.67594327,3737.0,3736.1,3.13936137]
[1753146137627,4.219,3737.1,3736.1,0.4628]
[1753146137932,2.6764922,3736.3,3735.6,0.7574]
[1753146138229,4.219,3736.2,3735.7,3.13966648]
[1753146138426,4.219,3736.2,3735.8,0.4628]
[1753146138623,4.219,3736.2,3735.6,0.91091529]
[1753146138920,4.219,3736.2,3735.9,0.4628]
[1753146139078,4.219,3736.2,3736.0,0.4628]
[1753146139291,4.219,3736.2,3735.9,2.67668461]
[1753146139292,4.217,3736.3,3736.1,0.4628]
[1753146139635,4.217,3736.3,3736.2,0.4628]
[1753146140035,4.217,3736.4,3736.2,0.4628]
[1753146140336,6.89340281,3736.4,3735.7,0.4628]
[1753146140635,2.67619624,3736.7,3736.0,2.67659155]
[1753146140790,4.215,3736.6,3736.1,3.1393794]
[1753146141133,4.215,3736.5,3736.2,0.4628]
[1753146141332,2.67616651,3736.7,3736.3,0.4628]
[1753146141505,6.4419,3737.5,3736.4,0.4628]
[1753146141830,6.42,3737.5,3736.5,0.7802]
[1753146142121,2.67534812,3737.9,3737.2,2.67579471]
[1753146142433,2.67561346,3737.5,3737.3,0.7802]
[1753146142590,2.67565687,3737.4,3736.9,0.4628]
[1753146142788,4.215,3737.7,3736.8,0.7802]
[1753146143028,2.67575033,3737.3,3736.8,0.7802]
[1753146143390,2.67580756,3737.2,3736.8,0.7802]
[1753146143791,2.67558528,3737.5,3736.8,0.7802]
[1753146144006,4.215,3737.7,3736.9,0.4628]
[1753146144219,2.67568304,3737.4,3736.9,0.4628]
[1753146144435,2.67558528,3737.5,3736.9,0.4628]
[1753146144616,0.002,3739.1,3738.1,2.67509548]
[1753146144932,2.67506369,3738.3,3737.8,0.4628]
[1753146145149,2.67522455,3738.1,3737.5,0.7802]
[1753146145317,2.67521032,3738.1,3737.5,0.7802]
[1753146145513,2.67537889,3737.8,3737.5,0.7802]
[1753146145710,0.0219,3738.3,3737.5,0.7802]
[1753146145951,4.232,3737.9,3737.6,2.67550836]
[1753146146144,4.233,3737.9,3737.5,3.45577701]
[1753146146350,0.0219,3738.8,3737.7,3.13823854]
[1753146146515,0.1336,3737.9,3737.7,0.4628]
[1753146146711,0.1336,3737.9,3737.5,0.7802]
[1753146146918,0.1336,3737.9,3735.9,2.67668578]
[1753146146919,4.232,3738.0,3737.1,0.7802]
[1753146147116,2.67568562,3737.4,3737.1,0.7802]
[1753146147340,6.90768562,3737.4,3737.1,0.7802]
[1753146147617,6.90768562,3737.4,3736.9,0.1336]
[1753146148249,2.67572846,3737.3,3736.7,0.7802]
[1753146148546,2.80963187,3736.9,3736.4,0.7779]
[1753146148748,6.90605015,3736.9,3736.4,0.7779]